[Event "FISU WUMSCC Men 2024"]
[Site "Entebbe"]
[Date "2024.06.29"]
[Round "8.2"]
[White "Thilakarathne, G M H"]
[Black "Gatineau, Yovann"]
[Result "1/2-1/2"]
[ECO "C11"]
[WhiteElo "2356"]
[BlackElo "2414"]
[Annotator "RC"]
[PlyCount "98"]
[EventDate "2024.06.24"]
[EventType "swiss"]
[EventCountry "UGA"]
[SourceTitle "playchess.com"]
[Source "ChessBase"]
[SourceQuality "1"]
[TimeControl "5400+30"]

1. e4 {[%emt 0:00:03]} e6 {[%emt 0:02:30]} 2. d4 {[%emt 0:00:12]} d5 {[%emt 0:00:05]} 3. Nc3 {[%emt 0:00:05]} Nf6 {[%emt 0:00:37]} 4. e5 {[%emt 0:00:06]} Nfd7 {[%emt 0:00:06]} 5. Nce2 {[%emt 0:00:05]} c5 {[%emt 0:01:10]} 6. c3 {[%emt 0:00:29]} Nc6 {[%emt 0:00:17]} 7. Nf3 {[%emt 0:00:25]} a5 {[%emt 0:00:18]} 8. g3 {[%emt 0:06:15]} a4 {[%emt 0:01:03]} 9. Bg2 {[%emt 0:00:30]} a3 {[%emt 0:02:08]} 10. b3 {[%emt 0:00:48]} cxd4 {[%emt 0:09:15]} 11. cxd4 {[%emt 0:00:07]} f6 {[%emt 0:00:33]} 12. Nf4 {[%emt 0:09:45]} Ndxe5 {[%emt 0:06:02]} 13. dxe5 {[%emt 0:03:33]} fxe5 {[%emt 0:00:24]} 14. Ne2 {[%emt 0:01:28]} Bc5 {[%emt 0:12:29]} 15. Be3 {[%emt 0:11:07]} Qa5+ {[%emt 0:04:04]} 16. Bd2 {[%emt 0:05:54]} Qb6 {[%emt 0:00:13]} 17. O-O {[%emt 0:00:55]} e4 {[%emt 0:09:53]} 18. Ng5 {[%emt 0:03:39]} O-O {[%emt 0:07:20]} 19. Nf4 {[%emt 0:04:41]} Ne7 {[%emt 0:02:48]} 20. Bc3 {[%emt 0:10:48]} h6 {[%emt 0:10:48]} 21. Nxe4 {[%emt 0:04:22]} dxe4 {[%emt 0:00:07]} 22. Bxe4 {[%emt 0:00:07]} e5 {[%emt 0:00:43]} 23. Bxe5 {[%emt 0:01:22]} Bf5 {[%emt 0:01:39]} 24. Bg2 {[%emt 0:05:10]} Ng6 {[%emt 0:08:23]} 25. Nd5 {[%emt 0:07:28]} Qd8 {[%emt 0:01:54]} 26. Bc7 {[%emt 0:01:43]} Qd7 {[%emt 0:03:08]} 27. Rc1 {[%emt 0:04:49]} Ba7 {[%emt 0:00:28]} 28. Nb6 {[%emt 0:03:58]} Qxd1 {[%emt 0:00:49]} 29. Rfxd1 {[%emt 0:00:36]} Rae8 {[%emt 0:00:04]} 30. Re1 {[%emt 0:01:30]} Kh7 {[%emt 0:01:26]} 31. Nc4 {[%emt 0:06:37]} b5 {[%emt 0:05:26]} 32. Ne3 {[%emt 0:01:16]} Be4 {[%emt 0:01:03]} 33. Bd6 {[%emt 0:01:05]} Rf6 {[%emt 0:00:44]} 34. Bxa3 {[%emt 0:01:00]} Bxg2 {[%emt 0:00:33]} 35. Kxg2 {[%emt 0:00:12]} Bxe3 {[%emt 0:03:22]} 36. Rxe3 {[%emt 0:01:36]} Rxe3 {[%emt 0:00:09]} 37. fxe3 {[%emt 0:00:04]} Ra6 {[%emt 0:00:06]} 38. Bb2 {[%emt 0:03:54]} Rxa2 {[%emt 0:00:09]} 39. Rc2 {[%emt 0:00:08]} Ne5 {[%emt 0:04:26]} 40. Rd2 {[%emt 0:00:01]} g5 {[%emt 0:01:37]} 41. h3 {[%emt 0:00:37]} Kg6 {[%emt 0:01:43]} 42. g4 {[%emt 0:00:52]} h5 {[%emt 0:00:42]} 43. gxh5+ {[%emt 0:00:20]} Kxh5 {[%emt 0:00:02]} 44. Kg3 {[%emt 0:00:12]} Nd3 {[%emt 0:01:11]} 45. Rxd3 {[%emt 0:02:01]} Rxb2 {[%emt 0:00:02]} 46. e4 {[%emt 0:00:41]} Re2 {[%emt 0:00:19]} 47. Kf3 {[%emt 0:00:09]} Rh2 {[%emt 0:00:06]} 48. Kg3 {[%emt 0:00:17]} Re2 {[%emt 0:00:04]} 49. Kf3 {[%emt 0:00:19]} Rh2 {[%emt 0:00:04]} 1/2-1/2

[Event "FISU WUMSCC Men 2024"]
[Site "Entebbe"]
[Date "2024.06.29"]
[Round "8.3"]
[White "Szustakowski, Antoni"]
[Black "Turcan, Richard"]
[Result "1/2-1/2"]
[ECO "A61"]
[WhiteElo "2362"]
[BlackElo "2374"]
[Annotator "RC"]
[PlyCount "110"]
[EventDate "2024.06.24"]
[EventType "swiss"]
[EventCountry "UGA"]
[SourceTitle "playchess.com"]
[Source "ChessBase"]
[SourceQuality "1"]
[TimeControl "5400+30"]

1. d4 {[%emt 0:00:03]} Nf6 {[%emt 0:00:12]} 2. c4 {[%emt 0:00:06]} c5 {[%emt 0:00:07]} 3. d5 {[%emt 0:00:05]} e6 {[%emt 0:00:03]} 4. Nc3 {[%emt 0:00:09]} exd5 {[%emt 0:00:04]} 5. cxd5 {[%emt 0:00:08]} d6 {[%emt 0:00:06]} 6. Nf3 {[%emt 0:00:06]} g6 {[%emt 0:00:04]} 7. h3 {[%emt 0:00:07]} Bg7 {[%emt 0:00:06]} 8. Bf4 {[%emt 0:00:05]} O-O {[%emt 0:00:16]} 9. e3 {[%emt 0:00:04]} a6 {[%emt 0:00:11]} 10. a4 {[%emt 0:00:06]} Re8 {[%emt 0:00:06]} 11. Nd2 {[%emt 0:00:06]} Nfd7 {[%emt 0:00:10]} 12. Be2 {[%emt 0:08:42]} Ne5 {[%emt 0:00:10]} 13. O-O {[%emt 0:00:54]} Nbd7 {[%emt 0:00:53]} 14. Bh2 {[%emt 0:03:14]} f5 {[%emt 0:02:00]} 15. Re1 {[%emt 0:00:43]} b6 {[%emt 0:14:38]} 16. e4 {[%emt 0:13:04]} Nf6 {[%emt 0:06:43]} 17. exf5 {[%emt 0:08:27]} Bxf5 {[%emt 0:00:16]} 18. Bf1 {[%emt 0:00:03]} Nd3 {[%emt 0:33:21]} 19. Bxd3 {[%emt 0:11:42]} Bxd3 {[%emt 0:00:31]} 20. Qf3 {[%emt 0:00:21]} c4 {[%emt 0:04:18]} 21. Qf4 {[%emt 0:11:11]} b5 {[%emt 0:07:54]} 22. Qxd6 {[%emt 0:02:04]} Qxd6 {[%emt 0:12:10]} 23. Bxd6 {[%emt 0:01:30]} Rad8 {[%emt 0:00:59]} 24. Rxe8+ {[%emt 0:06:42]} Nxe8 {[%emt 0:00:18]} 25. Bb4 {[%emt 0:00:28]} Bxc3 {[%emt 0:02:50]} 26. Bxc3 {[%emt 0:01:05]} Nc7 {[%emt 0:05:12]} 27. axb5 {[%emt 0:02:08]} axb5 {[%emt 0:00:31]} 28. Ra5 {[%emt 0:17:42]} Rxd5 {[%emt 0:03:08]} 29. Ra7 {[%emt 0:01:26]} Ne6 {[%emt 0:00:39]} 30. Nf3 {[%emt 0:06:53]} Be4 {[%emt 0:01:17]} 31. Re7 {[%emt 0:00:46]} Bxf3 {[%emt 0:01:10]} 32. Rxe6 {[%emt 0:00:08]} Rg5 {[%emt 0:01:42]} 33. g4 {[%emt 0:05:03]} h5 {[%emt 0:00:48]} 34. Bf6 {[%emt 0:00:39]} Rd5 {[%emt 0:01:23]} 35. gxh5 {[%emt 0:00:46]} Rxh5 {[%emt 0:00:53]} 36. h4 {[%emt 0:00:27]} Kf7 {[%emt 0:00:16]} 37. Rb6 {[%emt 0:00:24]} Rd5 {[%emt 0:00:19]} 38. Bc3 {[%emt 0:00:05]} Be4 {[%emt 0:01:21]} 39. f3 {[%emt 0:00:49]} Bf5 {[%emt 0:00:39]} 40. Kf2 {[%emt 0:00:24]} Ke7 {[%emt 0:00:42]} 41. Kg3 {[%emt 0:00:42]} Kd7 {[%emt 0:00:33]} 42. Kf4 {[%emt 0:00:06]} Kc7 {[%emt 0:00:10]} 43. Rf6 {[%emt 0:01:11]} Bc2 {[%emt 0:00:25]} 44. Be5+ {[%emt 0:00:38]} Kb7 {[%emt 0:00:45]} 45. Rd6 {[%emt 0:00:26]} Rxd6 {[%emt 0:00:38]} 46. Bxd6 {[%emt 0:00:04]} Kc6 {[%emt 0:00:05]} 47. Ke5 {[%emt 0:00:07]} Kd7 {[%emt 0:01:09]} 48. Bb4 {[%emt 0:00:57]} Bd3 {[%emt 0:01:12]} 49. Kd5 {[%emt 0:00:43]} Bf1 {[%emt 0:00:34]} 50. f4 {[%emt 0:00:22]} Bd3 {[%emt 0:00:10]} 51. Kc5 {[%emt 0:00:45]} Ke6 {[%emt 0:00:10]} 52. Bc3 {[%emt 0:00:06]} Kf5 {[%emt 0:00:04]} 53. Kxb5 {[%emt 0:00:08]} Kxf4 {[%emt 0:00:05]} 54. Kb4 {[%emt 0:00:06]} Kg4 {[%emt 0:00:09]} 55. Bf6 {[%emt 0:00:05]} Kh5 {[%emt 0:00:05]} 1/2-1/2

[Event "FISU WUMSCC Men 2024"]
[Site "Entebbe"]
[Date "2024.06.29"]
[Round "8.4"]
[White "Horak, Martin"]
[Black "Walter, Szymon"]
[Result "1-0"]
[ECO "B82"]
[WhiteElo "2333"]
[BlackElo "2313"]
[Annotator "RC"]
[PlyCount "55"]
[EventDate "2024.06.24"]
[EventType "swiss"]
[EventCountry "UGA"]
[SourceTitle "playchess.com"]
[Source "ChessBase"]
[SourceQuality "1"]
[TimeControl "5400+30"]

1. e4 {[%emt 0:01:47]} c5 {[%emt 0:00:08]} 2. Nf3 {[%emt 0:00:08]} e6 {[%emt 0:00:22]} 3. d4 {[%emt 0:00:05]} cxd4 {[%emt 0:00:06]} 4. Nxd4 {[%emt 0:00:03]} Nc6 {[%emt 0:00:07]} 5. Nc3 {[%emt 0:00:05]} a6 {[%emt 0:00:11]} 6. a3 {[%emt 0:00:32]} Qc7 {[%emt 0:00:19]} 7. Be3 {[%emt 0:00:26]} Nf6 {[%emt 0:01:05]} 8. f4 {[%emt 0:00:53]} d6 {[%emt 0:01:45]} 9. Qf3 {[%emt 0:01:12]} Be7 {[%emt 0:13:51]} 10. O-O-O {[%emt 0:01:18]} O-O {[%emt 0:01:27]} 11. Nxc6 {[%emt 0:02:16]} Qxc6 {[%emt 0:02:16]} 12. g4 {[%emt 0:00:33]} b5 {[%emt 0:06:16]} 13. g5 {[%emt 0:00:36]} Nd7 {[%emt 0:00:08]} 14. f5 {[%emt 0:00:37]} Ne5 {[%emt 0:18:19]} 15. Qg3 {[%emt 0:01:47]} Bd8 {[%emt 0:01:03]} 16. f6 {[%emt 0:05:51]} Rb8 {[%emt 0:02:30]} 17. fxg7 {[%emt 0:15:56]} Re8 {[%emt 0:01:34]} 18. Bf4 {[%emt 0:12:13]} Bc7 {[%emt 0:00:57]} 19. h4 {[%emt 0:02:13]} a5 {[%emt 0:04:16]} 20. h5 {[%emt 0:08:59]} b4 {[%emt 0:03:51]} 21. Nb1 {[%emt 0:01:08]} b3 {[%emt 0:23:04]} 22. Nc3 {[%emt 0:01:57]} Ba6 {[%emt 0:03:18]} 23. Bxa6 {[%emt 0:07:20]} bxc2 {[%emt 0:00:35]} 24. Rd2 {[%emt 0:00:21]} Qxa6 {[%emt 0:00:06]} 25. g6 {[%emt 0:00:50]} fxg6 {[%emt 0:06:02]} 26. Bxe5 {[%emt 0:00:17]} dxe5 {[%emt 0:00:08]} 27. hxg6 {[%emt 0:00:05]} h5 {[%emt 0:00:08]} 28. Qf3 {[%emt 0:01:25]} 1-0

[Event "FISU WUMSCC Men 2024"]
[Site "Entebbe"]
[Date "2024.06.29"]
[Round "8.5"]
[White "Wagner, Gerald"]
[Black "Mladek, Richard"]
[Result "0-1"]
[ECO "B90"]
[WhiteElo "1832"]
[BlackElo "2385"]
[Annotator "RC"]
[PlyCount "120"]
[EventDate "2024.06.24"]
[EventType "swiss"]
[EventCountry "UGA"]
[SourceTitle "playchess.com"]
[Source "ChessBase"]
[SourceQuality "1"]
[TimeControl "5400+30"]

1. e4 {[%emt 0:00:16]} c5 {[%emt 0:00:21]} 2. Nf3 {[%emt 0:00:07]} d6 {[%emt 0:00:09]} 3. d4 {[%emt 0:00:11]} cxd4 {[%emt 0:00:06]} 4. Nxd4 {[%emt 0:00:07]} Nf6 {[%emt 0:00:05]} 5. Nc3 {[%emt 0:00:12]} a6 {[%emt 0:00:05]} 6. a4 {[%emt 0:00:08]} e5 {[%emt 0:00:58]} 7. Nde2 {[%emt 0:00:17]} Be6 {[%emt 0:02:16]} 8. g3 {[%emt 0:01:00]} Be7 {[%emt 0:01:22]} 9. Bg2 {[%emt 0:00:07]} O-O {[%emt 0:00:53]} 10. h3 {[%emt 0:02:18]} Nc6 {[%emt 0:10:05]} 11. O-O {[%emt 0:02:07]} Nb4 {[%emt 0:00:39]} 12. f4 {[%emt 0:08:38]} Qb6+ {[%emt 0:03:15]} 13. Kh2 {[%emt 0:00:10]} Rfd8 {[%emt 0:03:06]} 14. f5 {[%emt 0:03:51]} Bc4 {[%emt 0:00:01]} 15. b3 {[%emt 0:00:07]} Bxe2 {[%emt 0:00:05]} 16. Qxe2 {[%emt 0:00:06]} Rac8 {[%emt 0:02:43]} 17. Bb2 {[%emt 0:00:02]} Rc5 {[%emt 0:03:23]} 18. Rac1 {[%emt 0:07:34]} Rdc8 {[%emt 0:01:23]} 19. Qe3 {[%emt 0:12:11]} Qc7 {[%emt 0:02:55]} 20. Rf3 {[%emt 0:01:49]} h5 {[%emt 0:01:37]} 21. Kh1 {[%emt 0:03:16]} Nh7 {[%emt 0:01:52]} 22. Qe2 {[%emt 0:08:19]} Bg5 {[%emt 0:01:41]} 23. Rd1 {[%emt 0:00:59]} Nf6 {[%emt 0:00:09]} 24. Ba1 {[%emt 0:08:01]} Qb6 {[%emt 0:12:01]} 25. Qf2 {[%emt 0:02:19]} Qc6 {[%emt 0:00:19]} 26. Qe2 {[%emt 0:05:04]} Qd7 {[%emt 0:05:46]} 27. Kh2 {[%emt 0:02:50]} Na2 {[%emt 0:07:13]} 28. Qe1 {[%emt 0:04:42]} Nb4 {[%emt 0:00:51]} 29. Qe2 {[%emt 0:00:03]} R8c7 {[%emt 0:01:02]} 30. Bb2 {[%emt 0:04:55]} Kh7 {[%emt 0:02:20]} 31. Ba3 {[%emt 0:02:36]} a5 {[%emt 0:00:02]} 32. Bxb4 {[%emt 0:01:33]} axb4 {[%emt 0:00:11]} 33. Nb5 {[%emt 0:00:01]} Rxc2 {[%emt 0:01:48]} 34. Qe1 {[%emt 0:00:26]} R7c6 {[%emt 0:05:34]} 35. Qxb4 {[%emt 0:02:01]} d5 {[%emt 0:06:17]} 36. exd5 {[%emt 0:03:45]} Nxd5 {[%emt 0:01:34]} 37. Qe1 {[%emt 0:00:22]} e4 {[%emt 0:05:22]} 38. Qxe4 {[%emt 0:06:58]} Rxg2+ {[%emt 0:04:22]} 39. Kxg2 {[%emt 0:00:25]} Ne3+ {[%emt 0:00:05]} 40. Rxe3 {[%emt 0:07:34]} Qxd1 {[%emt 0:00:10]} 41. Re1 {[%emt 0:01:15]} Qd2+ {[%emt 0:13:31]} 42. Kf1 {[%emt 0:00:31]} h4 {[%emt 0:01:48]} 43. Qe2 {[%emt 0:02:10]} hxg3 {[%emt 0:00:38]} 44. Qxd2 {[%emt 0:00:10]} Bxd2 {[%emt 0:00:04]} 45. Re7 {[%emt 0:00:41]} Bf4 {[%emt 0:00:06]} 46. Re2 {[%emt 0:00:39]} Kh6 {[%emt 0:00:28]} 47. Kg2 {[%emt 0:00:07]} Kg5 {[%emt 0:00:16]} 48. Kf3 {[%emt 0:00:12]} Rc1 {[%emt 0:01:14]} 49. h4+ {[%emt 0:00:26]} Kxh4 {[%emt 0:00:02]} 50. Nd4 {[%emt 0:01:14]} Bd6 {[%emt 0:00:53]} 51. Kg2 {[%emt 0:00:28]} Kg5 {[%emt 0:00:38]} 52. Nb5 {[%emt 0:00:28]} Bf4 {[%emt 0:00:09]} 53. Nd4 {[%emt 0:00:20]} Rd1 {[%emt 0:00:42]} 54. Re4 {[%emt 0:00:46]} Rd2+ {[%emt 0:01:00]} 55. Ne2 {[%emt 0:00:13]} Bd6 {[%emt 0:00:03]} 56. Kf3 {[%emt 0:00:48]} Kxf5 {[%emt 0:00:27]} 57. Nd4+ {[%emt 0:00:10]} Kg5 {[%emt 0:00:21]} 58. Rg4+ {[%emt 0:00:47]} Kf6 {[%emt 0:00:09]} 59. Re4 {[%emt 0:00:35]} g2 {[%emt 0:00:18]} 60. Rg4 {[%emt 0:00:30]} Rxd4 {[%emt 0:00:05]} 0-1

[Event "FISU WUMSCC Men 2024"]
[Site "Entebbe"]
[Date "2024.06.29"]
[Round "8.6"]
[White "Janik, Igor"]
[Black "Alharthi, Ahmed Mohammed A"]
[Result "1-0"]
[ECO "E62"]
[WhiteElo "2511"]
[BlackElo "1951"]
[Annotator "TA"]
[PlyCount "69"]
[EventDate "2024.06.24"]
[EventType "swiss"]
[EventCountry "UGA"]
[SourceTitle "playchess.com"]
[Source "ChessBase"]
[SourceQuality "1"]
[TimeControl "5400+30"]

{[%evp 14,69,65,28,33,26,33,23,36,21,70,69,72,60,89,77,76,89,78,65,82,84,86,0,103,95,99,101,120,126,123,118,190,195,243,245,233,214,265,189,184,162,169,159,155,154,156,164,188,184,174,168,548,552,481,218,1103,1109]} 1. Nf3 {[%emt 0:00:01]} Nf6 {[%emt 0:00:23]} 2. g3 {[%emt 0:00:05]} g6 {[%emt 0:00:15]} 3. Bg2 {[%emt 0:00:02]} Bg7 {[%emt 0:00:22]} 4. O-O {[%emt 0:00:03]} O-O {[%emt 0:00:32]} 5. d4 {[%emt 0:00:03]} d6 {[%emt 0:01:03]} 6. c4 {[%emt 0:00:06]} Nc6 {[%emt 0:01:57]} 7. Nc3 {[%emt 0:00:19]} Bg4 {[%emt 0:01:25]} 8. Ne1 {[%emt 0:00:02]} Qd7 {[%emt 0:02:42]} 9. f3 {[%emt 0:00:04]} Bh3 {[%emt 0:01:27]} 10. Bxh3 {[%emt 0:00:01]} Qxh3 {[%emt 0:00:11] White has an edge.} 11. Nd3 {[%emt 0:00:06]} e5 {[%emt 0:03:40]} (11... Nxd4 12. Nf2 Nxf3+ 13. exf3 $14) (11... Qd7 $11) 12. d5 $14 {[%emt 0:00:05]} Ne7 {[%emt 0:02:16]} 13. e4 $36 {[%emt 0:00:06][%mdl 2048] White fights for an advantage.} Nh5 {[%emt 0:15:22][%cal Oh5g3]} 14. g4 {[%emt 0:01:48]} (14. Qe1 {simplifies} Nf6 15. Bg5 Qd7 16. Rd1) 14... Nf4 {[%emt 0:02:48]} 15. Bxf4 {[%emt 0:00:44]} exf4 {[%emt 0:00:09]} 16. Nxf4 {[%emt 0:00:03]} Qh6 {[%emt 0:02:31]} 17. Ng2 {[%emt 0:01:24]} f5 {[%emt 0:00:39]} 18. Qc1 {[%emt 0:03:37]} (18. f4 $16) 18... f4 {[%emt 0:26:11]} (18... Qxc1 $11 19. Raxc1 fxg4) 19. Qd2 {[%emt 0:02:03] Black is now going downhill.} g5 {[%emt 0:07:22]} 20. Nb5 {[%emt 0:00:28][%cal Bc3b5,Bb5c7,Bc7e6][%mdl 32]} c5 {[%emt 0:14:13]} 21. Nc7 {[%emt 0:01:43]} (21. dxc6 bxc6 22. Nc3 (22. Nxd6 c5 $14) (22. Qxd6 cxb5 23. Qxe7 bxc4 $11) 22... Ng6 $15) 21... Rab8 {[%emt 0:02:00]} ({Not} 21... Bd4+ 22. Kh1 $11) 22. Ne6 {[%emt 0:00:15]} Rf7 {[%emt 0:00:42]} (22... Rf6 $16 {is a better defense.}) 23. h4 $1 $18 {[%emt 0:01:26]} Bf6 {[%emt 0:00:31]} (23... Ng6 {was necessary.} 24. Nxg5 (24. hxg5 Qh3 $14) 24... Bd4+ 25. Kh1 Rf6) 24. hxg5 {[%emt 0:00:26]} Bxg5 {[%emt 0:00:06]} 25. Kf2 {[%emt 0:00:10]} b5 {[%emt 0:01:05]} 26. Rh1 {[%emt 0:00:39][%cal Bf1h1,Bh1h5,Bh5h6][%mdl 32]} Qf6 {[%emt 0:00:21]} 27. Nxg5 {[%emt 0:01:30]} Qxg5 {[%emt 0:00:15]} 28. Rac1 {[%emt 0:00:43]} ({Don't do} 28. Rh5 Qg7 $16) 28... Qf6 {[%emt 0:01:55]} 29. cxb5 {[%emt 0:00:56]} Rxb5 {[%emt 0:00:53]} 30. b3 {[%emt 0:00:01]} Ng6 {[%emt 0:00:49]} 31. Rh5 {[%emt 0:00:15]} Qg7 {[%emt 0:02:00]} 32. Nh4 {[%emt 0:01:09]} Rfb7 $2 {[%emt 0:00:49] [#]} (32... Nxh4 {is a better chance.} 33. Rxh4 a5) 33. Nf5 {[%emt 0:00:21][%csl LRd6,LRg7]} Qf6 {[%emt 0:00:12]} 34. Qc3 {[%emt 0:00:40]} (34. g5 $142 Qe5 35. Nh6+ Kf8 36. Ng4) 34... Ne5 $2 {[%emt 0:00:36]} (34... Qxc3 35. Rxc3 R7b6) 35. Rh6 {[%emt 0:00:52] Weighted Error Value: White=0.26 (precise) /Black=0.38.  Mistake:       	White=2     	Black=6      Inaccurate:     	---       	Black=1      OK:         	White=12    	Black=8      Best:        	White=2     	Black=1      Strong:       	White=1     	---} 1-0

[Event "FISU WUMSCC Men 2024"]
[Site "Entebbe"]
[Date "2024.06.29"]
[Round "8.7"]
[White "Nyola Wasswa Mark"]
[Black "Alrehaili, Ahmed Abdullah S"]
[Result "1/2-1/2"]
[ECO "E60"]
[WhiteElo "2067"]
[BlackElo "2134"]
[Annotator "RC"]
[PlyCount "154"]
[EventDate "2024.06.24"]
[EventType "swiss"]
[EventCountry "UGA"]
[SourceTitle "playchess.com"]
[Source "ChessBase"]
[SourceQuality "1"]
[TimeControl "5400+30"]

1. d4 {[%emt 0:00:01]} Nf6 {[%emt 0:00:11]} 2. c4 {[%emt 0:00:07]} g6 {[%emt 0:00:26]} 3. g3 {[%emt 0:00:36]} Bg7 {[%emt 0:00:07]} 4. Bg2 {[%emt 0:00:03]} d6 {[%emt 0:00:11]} 5. e4 {[%emt 0:00:20]} O-O {[%emt 0:00:32]} 6. Ne2 {[%emt 0:00:09]} c5 {[%emt 0:02:51]} 7. O-O {[%emt 0:02:32]} Nc6 {[%emt 0:01:55]} 8. d5 {[%emt 0:00:49]} Na5 {[%emt 0:01:38]} 9. Qc2 {[%emt 0:02:15]} e6 {[%emt 0:05:34]} 10. Na3 {[%emt 0:07:03]} exd5 {[%emt 0:00:55]} 11. cxd5 {[%emt 0:00:07]} Rb8 {[%emt 0:05:33]} 12. Nb5 {[%emt 0:03:45]} Ne8 {[%emt 0:03:56]} 13. Nxa7 {[%emt 0:06:55]} Bd7 {[%emt 0:00:17]} 14. a4 {[%emt 0:00:08]} Ra8 {[%emt 0:10:21]} 15. Nb5 {[%emt 0:00:26]} Bxb5 {[%emt 0:00:11]} 16. axb5 {[%emt 0:00:09]} Nc7 {[%emt 0:00:54]} 17. Nc3 {[%emt 0:01:21]} Qd7 {[%emt 0:02:29]} 18. Bf4 {[%emt 0:03:09]} Rfd8 {[%emt 0:12:09]} 19. Rfe1 {[%emt 0:15:54]} Nxb5 {[%emt 0:03:29]} 20. e5 {[%emt 0:05:59]} Nd4 {[%emt 0:02:25]} 21. Qd3 {[%emt 0:00:27]} dxe5 {[%emt 0:03:51]} 22. Bxe5 {[%emt 0:00:35]} Bxe5 {[%emt 0:03:12]} 23. Rxe5 {[%emt 0:00:07]} c4 {[%emt 0:00:36]} 24. Qe4 {[%emt 0:04:51]} Nab3 {[%emt 0:03:02]} 25. Re1 {[%emt 0:02:43]} b5 {[%emt 0:02:29]} 26. Qf4 {[%emt 0:05:00]} Kg7 {[%emt 0:08:13]} 27. Ne4 {[%emt 0:07:17]} Ra6 {[%emt 0:16:52]} 28. d6 {[%emt 0:10:59]} Rxd6 {[%emt 0:01:56]} 29. Nxd6 {[%emt 0:00:27]} Qxd6 {[%emt 0:00:02]} 30. Bd5 {[%emt 0:01:08]} Rd7 {[%emt 0:01:09]} 31. Bg2 {[%emt 0:02:42]} b4 {[%emt 0:03:09]} 32. h4 {[%emt 0:00:09]} h5 {[%emt 0:01:37]} 33. g4 {[%emt 0:07:32]} Re7 {[%emt 0:01:42]} 34. gxh5 {[%emt 0:01:56]} Rxe5 {[%emt 0:00:02]} 35. h6+ {[%emt 0:01:51]} Kh7 {[%emt 0:00:52]} 36. Qf5 {[%emt 0:08:58]} f6 37. Qxf6 {[%emt 0:00:00]} Kxh6 {[%emt 0:00:31]} 38. Qf4+ {[%emt 0:00:00]} Kg7 {[%emt 0:00:03]} 39. Qxe5+ {[%emt 0:00:00]} Qxe5 {[%emt 0:00:02]} 40. Rxe5 {[%emt 0:00:00]} c3 {[%emt 0:00:36]} 41. bxc3 {[%emt 0:00:00]} bxc3 {[%emt 0:00:01]} 42. Be4 {[%emt 0:00:00]} Nd2 {[%emt 0:03:13]} 43. Kg2 {[%emt 0:00:25]} Kf6 {[%emt 0:00:50]} 44. Rd5 {[%emt 0:00:43]} Ne2 {[%emt 0:00:09]} 45. Rd6+ {[%emt 0:01:48]} Ke5 {[%emt 0:00:04]} 46. Rxg6 {[%emt 0:00:41]} Nf4+ {[%emt 0:01:23]} 47. Kh2 {[%emt 0:01:11]} Nxg6 {[%emt 0:00:01]} 48. Bc2 {[%emt 0:00:39]} Nxh4 {[%emt 0:00:47]} 49. Kg3 {[%emt 0:00:14]} Nf5+ {[%emt 0:00:14]} 50. Kg4 {[%emt 0:00:28]} Nd4 {[%emt 0:02:03]} 51. f4+ {[%emt 0:00:17]} Kf6 {[%emt 0:00:11]} 52. Bd3 {[%emt 0:00:29]} Nf1 {[%emt 0:00:35]} 53. Be4 {[%emt 0:00:40]} Nd2 {[%emt 0:00:54]} 54. Bd3 {[%emt 0:00:10]} Nc4 {[%emt 0:00:11]} 55. Be4 {[%emt 0:00:26]} Nb2 {[%emt 0:00:38]} 56. Kg3 {[%emt 0:00:49]} Nd1 {[%emt 0:00:03]} 57. Bd3 {[%emt 0:00:28]} Ke6 {[%emt 0:00:25]} 58. Be4 {[%emt 0:00:33]} Kd6 {[%emt 0:00:25]} 59. Kg2 {[%emt 0:00:31]} Kc5 {[%emt 0:00:38]} 60. Kg3 {[%emt 0:00:39]} Kc4 {[%emt 0:00:58]} 61. f5 {[%emt 0:00:33]} Nb2 {[%emt 0:00:21]} 62. Kf2 {[%emt 0:00:39]} Nd3+ {[%emt 0:00:54]} 63. Ke3 {[%emt 0:00:14]} Ne5 {[%emt 0:00:24]} 64. Bb1 {[%emt 0:00:49]} Ng4+ {[%emt 0:00:20]} 65. Kf4 {[%emt 0:00:15]} Nf6 {[%emt 0:00:12]} 66. Ke3 {[%emt 0:00:33]} Nd5+ {[%emt 0:01:05]} 67. Ke4 {[%emt 0:00:31]} Nb3 {[%emt 0:00:17]} 68. Bd3+ {[%emt 0:00:26]} Kc5 {[%emt 0:00:07]} 69. Bc2 {[%emt 0:00:41]} Nd4 {[%emt 0:00:06]} 70. Bb1 {[%emt 0:00:28]} Nb5 {[%emt 0:00:27]} 71. Kd3 {[%emt 0:00:32]} Na3 {[%emt 0:01:30]} 72. Ba2 {[%emt 0:00:35]} c2 {[%emt 0:00:01]} 73. Kd2 {[%emt 0:00:05]} Nb4 {[%emt 0:00:20]} 74. Bb3 {[%emt 0:00:37]} Nc4+ {[%emt 0:01:43]} 75. Kc1 {[%emt 0:00:13]} Nd3+ {[%emt 0:00:00]} 76. Kxc2 {[%emt 0:00:13]} Ne3+ {[%emt 0:00:04]} 77. Kxd3 {[%emt 0:00:07]} Nxf5 {[%emt 0:00:38]} 1/2-1/2